Workbook

Sheet 1-Input Data
C3: #1 - Dental Associate Analysis - Data Input
C5: Formal Practice Name
C7: Senior Doctor(s) Name
C10: Potential Associate Name
C12: Annual Total Practice Production
C14: Annual Productions - All Doctors
C16: Collections Rate
C18: Estimated Universal Variable Percent
C20: ="% of Univ. Variables Paid by "&Doctor1 -> % of Univ. Variables Paid by 0
C22: Annual Lab Fees - All Doctors
C24: Calculated Lab Fee Percent | D24: =LabFee -> 0
C26: ="% of Assoc. Lab Paid by "&Doctor1 -> % of Assoc. Lab Paid by 0
C29: New Associate Data
C30: New Associate Estimated Daily Production
C32: Estimated Normal Daily Hours Worked
C33: Standard Treatment Hours per Day for This Practice | D33: 0
C35: =AssocName&"'s Estimated Days Worked Per Week" -> 0's Estimated Days Worked Per Week
C38: Associate Paid on (1=Collections, 2=Production)
C40: Associate Commission Percentage:
C42: Associate Payroll Taxes and Benefits
C45: Practice Gross Production Value of a New Patient:
C49: Associate Minimum Annual Income Required
C51: Daily Associate Income Required | D51: =Calcs!Z351 -> 0
C53: Addl. Front Desk Help
C55: Number of Hours / Day
C57: Amount Paid / Hour
C59: Days / Week to Work
C60: Estimated Gross Monthly Pay | D60: =FrontDeskSal -> 0
C61: =" % to "&Doctor1 -> % to 0
C63: Associate's Clinical Asst.:
C65: Number of Hours / Day
C67: Amount Paid / Hour
C69: Days / Week to Work
C71: Number of Assistants Needed.
C72: Estimated Gross Monthly Pay | D72: =AssisSal -> 0
C73: =" % to "&Doctor1 -> % to 0 | D73: 0
C76: Annual Expenses:
D77: Annually Only
C78: Expense 1: Malpractice Insurance
C80: ='2-New Assoc. Analysis'!$E$85 -> % to 0 | D80: 0
C82: Expense 2: Additional Operatory(ies)
C84: ='2-New Assoc. Analysis'!$E$85 -> % to 0 | D84: 0
C86: Expense 3: Marketing
C88: ='2-New Assoc. Analysis'!$E$85 -> % to 0 | D88: 0
C90: Expense 4: CE Expense
C92: ='2-New Assoc. Analysis'!$E$85 -> % to 0 | D92: 0
C94: Expense 5: Equipment | D94: 0
C96: ='2-New Assoc. Analysis'!$E$85 -> % to 0 | D96: 0
C98: Expense 6: Optional Expense A
C100: ='2-New Assoc. Analysis'!$E$85 -> % to 0 | D100: 0
C102: Expense 7: Optional Expense B | D102: 0
C104: ='2-New Assoc. Analysis'!$E$85 -> % to 0 | D104: 0

Sheet 2-New Assoc. Analysis
B4: =Formal_Practice_Name -> 0
B6: #2 - New Associate Analysis - The Wealthy Dentist University ® | P6: =NOW() -> 2018-03-23T21:43:40.260
B10: Assumptions:
B11: =Potential_Associate_Name&"'s Estimated Current Daily Production" -> 's Estimated Current Daily Production | J11: =AssEstCurrProd -> 0
B12: ="Estimated Normal Daily Hours Worked by "&AssocName -> Estimated Normal Daily Hours Worked by 0 | J12: =AssocHoursDay -> 0
B14: Standard Treatment Hours per Day for the Associate | J14: =StdTreatHours -> 0
B15: =AssocName&"'s Estimated Days Worked per Week" -> 0's Estimated Days Worked per Week | J15: =AssocDaysWorkedPerWk -> 0
B16: =AssocName&"'s Production per Standard Day" -> 0's Production per Standard Day | J16: =ProdperStandardDay -> 
B17: Practice Collections %: | J17: =CollectionsPercent -> 0
B18: Estimated Universal Variable Percent | J18: =CalUnivVarPerCent -> 0
B19: Annual Lab Fees - All Doctors | J19: =DrsLabFeePct -> 0
B20: Associate Commission %: | J20: =AssCommPct -> 0
B21: Associate Commission Paid on: (1=Collections, 2=Production) | J21: =AssocPaidOn -> 0
B23: Historical Production | J23: =AssocName -> 0
B24: ="Production Required to Sustain "&AssocName -> Production Required to Sustain 0 | J24: =RequiredProd -> 0
B25: Value of a New Patient: | J25: =ValueNewPt -> 0
B26: Number of New Patients per Month Required to Sustain Associate | J26: =NewPtsNeeded -> 
B28: ="Net Profit per Standard Day of Production by "&AssocName -> Net Profit per Standard Day of Production by 0
N29: Profit to | P29: Take-Home For
N30: =Doctor1 -> 0 | P30: =AssocName -> 0
C31: Estimated Current Daily Production | J31: =AssEstCurrProd -> 0
I32: x | J32: =CollectionsPercent -> 0
C34: Current Collections per Standard Day | J34: =CurCollecPerStdDay -> 0 | N34: =GrossPay -> 0
C36: Associate Commission Percentage: | H36: =AssocCoomRate -> 0
D37: Paid on: | H37: =CollecProd -> 0 | I37: 1 = Collections 2 = Production
D38: ="Gross Commission for "&AssocName -> Gross Commission for 0 | J38: =AssocGrossPay -> 0 | N38: =-AssocGrossPay -> 0 | P38: =AssocGrossPay -> 0
D39: Estimated Payroll Taxes & Benefits | H39: =PayrollTaxAssoc -> 0 | J39: =AssocPayrollTaxes ->  | N39: =-AssocPayrollTaxes -> 
C41: Variable Expenses
D43: Universal Variable Expenses
E44: ="% to "&Doctor1 -> % to 0 | H44: =SrDocUnivExp -> 0 | I44: =UnivDrPortion -> 0 | J44: =-DrUniVar -> 0 | N44: =DrUniVar -> 0
E45: ="% to "&AssocName -> % to 0 | H45: =AssocUnivExp -> 1 | I45: =UnivAssocPortion -> 0 | J45: =-AssUniVar -> 0 | P45: =AssUniVar -> 0
D47: =AssocName&"'s Lab Fees" -> 0's Lab Fees
E48: ="% to "&Doctor1 -> % to 0 | H48: =SrDocLabExp -> 0 | I48: =AsocLabFees ->  | J48: =-DrLabFeesAssoc ->  | N48: =DrLabFeesAssoc -> 
E49: ="% to "&AssocName -> % to 0 | H49: =AssocLabExp -> 1 | I49: =AssocLabCosts ->  | J49: =-AssLabFee ->  | P49: =AssLabFee -> 
B56: =Formal_Practice_Name -> 0
B57: ="Practice: "&Doctor1 -> Practice: 0
B58: New Associate Analysis - The Wealthy Dentist University ® | P58: =NOW() -> 2018-03-23T21:43:40.260
N61: Profit to | P61: Take-Home for
N62: =Doctor1 -> 0 | P62: =Potential_Associate_Name -> 0
C63: Add'l. Team Cost: | J63: Monthly | L63: Daily
D65: Addl. Front Desk Help
D66: =FrontDeskDetails -> Salary = Hrs. * $ /hr. * days/wk. | J66: =FrontDeskSal -> 0 | L66: =FrontDeskSalDaily -> 
D67: Estimated Payroll Taxes & Benefits | H67: 0.1 | J67: =FrontDeskPayrollMo -> 0 | L67: =FrontDeskPayrollDaily -> 
D68: Total | J68: =FrontDeslTotMo -> 0 | L68: =AssocFrontDeskCost -> 
E70: ="% to "&Doctor1 -> % to 0 | H70: =PercentToSrDr -> 0 | J70: =FrntDeskDrMo -> 0 | L70: =FrntDeskDrDaily ->  | N70: =DrFrntDsk -> 
E71: ="% to "&AssocName -> % to 0 | H71: =FrntDskPctToAssoc -> 1 | J71: =FrntDeskAssocMo -> 0 | L71: =FrntDeskAssocDaily ->  | P71: =AssFrntDsk -> 
D73: Associate's Clinical Asst.:
D74: ="Salary = " &'1-Input Data'!D65&" Hrs. * $" &'1-Input Data'!D67&" /hr. * " &'1-Input Data'!D69&" days/wk. * " &'1-Input Data'!D71& " assistant(s)" -> Salary = Hrs. * $ /hr. * days/wk. * assistant(s) | J74: =AssisSal -> 0 | L74: =J74/AssocStandardDaysperMo -> 
D75: Estimated Payroll taxes & benefits | H75: 0.1 | J75: =AssisPayrollMo -> 0 | L75: =AssisPayrollDaily -> 
D76: Total | J76: =AssisTotMo -> 0 | L76: =AssocAsstCost -> 
E78: ="% to "&Doctor1 -> % to 0 | H78: =AssisPctToDr -> 0 | J78: =AssisDrMo -> 0 | L78: =AssisDrDaily ->  | N78: =DrClinAsst -> 
E79: ="% to "&AssocName -> % to 0 | H79: =AssisPctToAssoc -> 1 | J79: =AssisAssocMo -> 0 | L79: =AssisAssocDaily ->  | P79: =AssClinAsst -> 
C81: Annual Expenses
D83: ='1-Input Data'!$C$78 -> Expense 1: Malpractice Insurance | J83: =MalPracMo -> 0 | L83: =MalPracDaily -> 
E85: ="% to "&Doctor1 -> % to 0 | H85: =MalPracPctToDr -> 0 | J85: =MalPracDrMo -> 0 | L85: =MalPracDrDaily ->  | N85: =DrExp1 -> 
E86: ="% to "&AssocName -> % to 0 | H86: =MalPracPctToAssoc -> 1 | J86: =MalPracAssocMo -> 0 | L86: =AssocMedInsCost ->  | P86: =AssExp1 -> 
D88: ='1-Input Data'!$C$82 -> Expense 2: Additional Operatory(ies) | J88: =AddlOpMo -> 0 | L88: =AddlOpDaily -> 
E90: ="% to "&Doctor1 -> % to 0 | H90: =AddlOpPctToDr -> 0 | J90: =AddlOpDrMo -> 0 | L90: =AddlOpDrDaily ->  | N90: =DrExp2 -> 
E91: ="% to "&AssocName -> % to 0 | H91: =AddlOpPctToAssoc -> 1 | J91: =AddlOpAssocMo -> 0 | L91: =AddlOpAssocDaily ->  | P91: =AssExp2 -> 
D93: ='1-Input Data'!$C$86 -> Expense 3: Marketing | J93: =MktgCostsMo -> 0 | L93: =MktgCostsDaily -> 
E95: ="% to "&Doctor1 -> % to 0 | H95: =MktgCostsPctToDr -> 0 | J95: =MktgCostsDrMo -> 0 | L95: =MktgCostsDrDaily ->  | N95: =DrExp3 -> 
E96: ="% to "&AssocName -> % to 0 | H96: =MktgCostsPctToAssoc -> 1 | J96: =MktgCostsAssocMo -> 0 | L96: =MktgCostsAssocDaily ->  | P96: =AssExp3 -> 
D98: ='1-Input Data'!$C$90 -> Expense 4: CE Expense | J98: =CEMo -> 0 | L98: =CEDaily -> 
E100: ="% to "&Doctor1 -> % to 0 | H100: =CEPctToDr -> 0 | J100: =CEDrMo -> 0 | L100: =CEDrDaily ->  | N100: =DrExp4 -> 
E101: ="% to "&AssocName -> % to 0 | H101: =CEPctToAssoc -> 1 | J101: =CEAssocMo -> 0 | L101: =CEAssocDaily ->  | P101: =AssExp4 -> 
D103: ='1-Input Data'!$C$94 -> Expense 5: Equipment | J103: =EquipMo -> 0 | L103: =EquipDaily -> 
E105: ="% to "&Doctor1 -> % to 0 | H105: =EquipPctToDr -> 0 | J105: =EquipDrMo -> 0 | L105: =EquipDrDaily ->  | N105: =DrExp5 -> 
E106: ="% to "&AssocName -> % to 0 | H106: =EquipPctToAssoc -> 1 | J106: =EquipAssocMo -> 0 | L106: =EquipAssocDaily ->  | P106: =AssExp5 -> 
D108: ='1-Input Data'!$C$98 -> Expense 6: Optional Expense A | J108: =Opt1Mo -> 0 | L108: =Opt1Daily -> 
E110: ="% to "&Doctor1 -> % to 0 | H110: =Opt1PctToDr -> 0 | J110: =Opt1DrMo -> 0 | L110: =Opt1DrDaily ->  | N110: =DrExp6 -> 
E111: ="% to "&AssocName -> % to 0 | H111: =Opt1PctToAssoc -> 1 | J111: =Opt1AssocMo -> 0 | L111: =Opt1AssocDaily ->  | P111: =AssExp6 -> 
D113: ='1-Input Data'!$C$102 -> Expense 7: Optional Expense B | J113: =Opt2Mo -> 0 | L113: =EquipDaily -> 
E115: ="% to "&Doctor1 -> % to 0 | H115: =Opt2PctToDr -> 0 | J115: =Opt2DrMo -> 0 | L115: =Opt2DrDaily ->  | N115: =DrExp7 -> 
E116: ="% to "&AssocName -> % to 0 | H116: =Opt2PctToAssoc -> 1 | J116: =Opt2AssocMo -> 0 | L116: =Opt2AssocDaily ->  | P116: =AssExp7 -> 
D119: Net Profit per Standard Day - before Overhead Allocation | N119: =DrNetIncome ->  | P119: =AssPftDay -> 
D121: Number of Standard Days per Month | M121: x | N121: =AssocStandardDaysperMo -> 0 | O121: x | P121: =AssocStandardDaysperMo -> 0
D123: Net Profit per Month - before Overhead Allocation | N123: =DrPftMo ->  | P123: =DrPftDaily -> 
D125: Contribution after direct expenses per Day | N125: =ContribDrDaily ->  | P125: =ContribAssocDaily -> 
D126: Contribution after direct expenses per Month | N126: =ContribDrMo ->  | P126: =ContribAssocMo -> 
D127: Contribution after direct expenses per Year | N127: =ContribDrYear ->  | P127: =ContribAssocYear -> 
D128: Overhead Contribution
D131: =Potential_Associate_Name&"'s minimum required gross annual income" -> 's minimum required gross annual income | P131: ='1-Input Data'!D49 -> 0
O132: =Calcs!L193 ->  | P132: =P127-P131 ->  | Q132: =Calcs!M193 -> 

Sheet 3-Assoc. Pay Chart
D3: # 3 - Associate's Daily Net Take-Home Before Tax
D4: Assumptions:
D5: Assoc. Paid on: | F5: =IF(AssocPaidOn=1,"Collections","Production") -> Production
D6: No. of Days Worked: | F6: =AssocStandardDaysperMo -> 0 | J6: Collections % | L6: =CollperCent -> 0 | O6: Lab Fees | P6: =DrsLabFeePct -> 0 | R6: Team Cost | T6: =AssClinAsst_FrntDsk ->  | V6: Other Expenses | X6: =AssocAnnExp -> 
C8: =AssocRange -> Lab Fees | Z8: New Assoc. | AA8: Assoc.
C9: Universal Costs | D9: 0 | E9: 0 | F9: 0 | G9: 0 | H9: 0 | I9: 0 | J9: 0 | K9: 0 | L9: 0 | M9: 0 | N9: 0 | O9: 0 | P9: 0 | Q9: 0 | R9: 0 | S9: 0 | T9: 0 | U9: 0 | V9: 0 | W9: 0 | X9: 0 | Z9: Est. Prod. | AA9: Comm. %
C10: Production Rate | Z10: =New_Associate_Est._Prod. -> 0 | AA10: =Associate_commission_percentage -> 0
C11: Per Day | D11: 1000 | E11: 1100 | F11: 1200 | G11: 1300 | H11: 1400 | I11: 1500 | J11: 1600 | K11: 1700 | L11: 1800 | M11: 1900 | N11: 2000 | O11: 2100 | P11: 2200 | Q11: 2300 | R11: 2400 | S11: 2500 | T11: 2600 | U11: 2700 | V11: 2800 | W11: 2900 | X11: 3000
B12: Percent | C12: 0.25
B13: =IF(AssocPaidOn=1,"of Coll.","of Prod.") -> of Prod. | C13: 0.26
B14: Paid to | C14: 0.27
B15: Assoc. | C15: 0.28
C16: 0.29
C17: 0.3
C18: 0.31
C19: 0.32
C20: 0.33
C21: 0.34
C22: 0.35
C23: 0.36
C24: 0.37
C25: 0.38
C26: 0.39
C27: 0.4
C28: 0.41
C29: 0.42
C30: 0.43
C31: 0.44
C32: 0.45
C33: 0.46
C34: 0.47
C35: 0.48
C36: 0.49
C37: 0.5
C38: 0.51
C39: 0.52
C40: 0.53
C41: 0.54
C42: 0.55
C43: 0.56
C44: 0.57
C45: 0.58
C46: 0.59
C47: 0.6
C48: 0.61
C49: 0.62
C50: 0.63
C51: 0.64
C52: 0.65
C105: 2 | D105: =Doctor1&"'s Net Profit After Overhead Cost" -> 0's Net Profit After Overhead Cost
E107: =(E$118*CollperCent) -> 0
E108: =-IF(AssocPaidOn=1,E$118*CollperCent*$C$129,E$118*$C$129) -> -385
E109: =-PayrollTaxAssoc*((IF(AssocPaidOn=1,E$118*CollperCent*$C$129,E$118*$C$129)*(1-AssocVarCosts-AssocLabCosts)-AssocAddlCosts-AssocRDACosts)) -> 
E110: =-E$118*SrDrVarCosts -> 0
E111: =-AddlCostAssoc -> 
E112: =-DailyOverheadCosts -> 
E113: =SUM(E107:E112) ->  | F113: Result at V429
E114: =NoDaysWorked -> 0
D115: Assoc. Paid on: | G115: =IF(AssocPaidOn=1,"Collections","Production") -> Production
D116: Days Worked | F116: =NoDaysWorked -> 0 | H116: Collections % | J116: =CollperCent -> 0 | L116: Variable Costs | N116: =SrDrVarCosts -> 0 | P116: Addl Costs of Assoc | S116: =-(DrFrntDsk+DrClinAsst+DrExp1+DrExp2+DrExp3+DrExp4+DrExp5) ->  | U116: Overhead | X116: =-'2-New Assoc. Analysis'!#REF! -> 
C117: Production Rate
C118: Per Day | D118: =D11 -> 1000 | E118: 1100 | F118: 1200 | G118: 1300 | H118: 1400 | I118: 1500 | J118: 1600 | K118: 1700 | L118: 1800 | M118: 1900 | N118: 2000 | O118: 2100 | P118: 2200 | Q118: 2300 | R118: 2400 | S118: 2500 | T118: 2600 | U118: 2700 | V118: 2800 | W118: 2900 | X118: 3000
C119: =C12 -> 0.25 | D119: =(IF(AssocPaidOn=1,D$118*$J$116*(1-$C119),D$118*(1-$C119))+SrDrSubTotal+PayRlTaxes) ->  | N119: =(IF(AssocPaidOn=1,N$118*$J$116*(1-$C119),N$118*(1-$C119))+SrDrSubTotal+PayRlTaxes) -> 
C120: 0.26
C121: 0.27
C122: 0.28
C123: 0.29
C124: 0.3
C125: 0.31
C126: 0.32
C127: 0.33
C128: 0.34
C129: 0.35 | D129: =(IF(AssocPaidOn=1,D$118*$J$116*(1-$C129),D$118*(1-$C129))+SrDrSubTotal+PayRlTaxes) ->  | N129: =(IF(AssocPaidOn=1,N$118*$J$116*(1-$C129),N$118*(1-$C129))+SrDrSubTotal+PayRlTaxes) -> 
C130: 0.36
C131: 0.37
C132: 0.38
C133: 0.39
C134: 0.4
C135: 0.41
C136: 0.42
C137: 0.43
C138: 0.44
C139: 0.45 | D139: =(IF(AssocPaidOn=1,D$118*$J$116*(1-$C139),D$118*(1-$C139))+SrDrSubTotal+PayRlTaxes) ->  | N139: =(IF(AssocPaidOn=1,N$118*$J$116*(1-$C139),N$118*(1-$C139))+SrDrSubTotal+PayRlTaxes) -> 
C140: 0.46
C141: 0.47
C142: 0.48
C143: 0.49
C144: 0.5
C145: 0.51
C146: 0.52
C147: 0.53
C148: 0.54
C149: 0.55 | D149: =(IF(AssocPaidOn=1,D$118*$J$116*(1-$C149),D$118*(1-$C149))+SrDrSubTotal+PayRlTaxes) ->  | N149: =(IF(AssocPaidOn=1,N$118*$J$116*(1-$C149),N$118*(1-$C149))+SrDrSubTotal+PayRlTaxes) -> 
C150: 0.56
C151: 0.57
C152: 0.58
C153: 0.59
C154: 0.6
C155: 0.61
C156: 0.62
C157: 0.63
C158: 0.64
C159: 0.65

Sheet 4-Sr Dr Pay Chart
D3: ="# 4 - "&Doctor1&"'s Daily Net Profit Before Overhead Cost" -> # 4 - 0's Daily Net Profit Before Overhead Cost
D4: Assumptions:
D6: Days Worked | F6: =NoDaysWorked -> 0 | H6: Collections % | J6: =CollperCent -> 0 | L6: Variable Costs | N6: =VarCostsPerctUniversal -> 0 | P6: Team Cost | R6: =DrClinAsst_FrntDsk ->  | T6: Other Expenses | V6: =DrAnnExp -> 
C8: =SrDrRange -> Lab Fees | D8: 0 | E8: 0 | F8: 0 | G8: 0 | H8: 0 | I8: 0 | J8: 0 | K8: 0 | L8: 0 | M8: 0 | N8: 0 | O8: 0 | P8: 0 | Q8: 0 | R8: 0 | S8: 0 | T8: 0 | U8: 0 | V8: 0 | W8: 0 | X8: 0 | AA8: New Assoc. | AB8: Assoc.
C9: Universal Costs | D9: 0 | E9: 0 | F9: 0 | G9: 0 | H9: 0 | I9: 0 | J9: 0 | K9: 0 | L9: 0 | M9: 0 | N9: 0 | O9: 0 | P9: 0 | Q9: 0 | R9: 0 | S9: 0 | T9: 0 | U9: 0 | V9: 0 | W9: 0 | X9: 0 | AA9: Est. Prod. | AB9: Comm. %
C10: Production Rate | AA10: =New_Associate_Est._Prod. -> 0 | AB10: =Associate_commission_percentage -> 0
C11: Per Day | D11: 1000 | E11: 1100 | F11: 1200 | G11: 1300 | H11: 1400 | I11: 1500 | J11: 1600 | K11: 1700 | L11: 1800 | M11: 1900 | N11: 2000 | O11: 2100 | P11: 2200 | Q11: 2300 | R11: 2400 | S11: 2500 | T11: 2600 | U11: 2700 | V11: 2800 | W11: 2900 | X11: 3000
B12: Percent | C12: 0.25
B13: =IF('2-New Assoc. Analysis'!$H$37=1,"of Coll.","of Prod.") -> of Prod. | C13: 0.26
B14: Paid to | C14: 0.27
B15: Assoc. | C15: 0.28
C16: 0.29
C17: 0.3
C18: 0.31
C19: 0.32
C20: 0.33
C21: 0.34
C22: 0.35
C23: 0.36
C24: 0.37
C25: 0.38
C26: 0.39
C27: 0.4
C28: 0.41
C29: 0.42
C30: 0.43
C31: 0.44
C32: 0.45
C33: 0.46
C34: 0.47
C35: 0.48
C36: 0.49
C37: 0.5
C38: 0.51
C39: 0.52
C40: 0.53
C41: 0.54
C42: 0.55
C43: 0.56
C44: 0.57
C45: 0.58
C46: 0.59
C47: 0.6
C48: 0.61
C49: 0.62
C50: 0.63
C51: 0.64
C52: 0.65

Sheet 5-Breakeven Chart
K8: #5 - Breakeven Take Home
K11: =Calcs!Y356 -> 0% Commission on Production

Sheet Calcs (hidden)
A2: =Formal_Practice_Name -> 0
A3: ="Practice: "&Doctor1 -> Practice: 0
A4: New Associate Analysis - MasterPlan Alliance Recomendations | M4: =NOW() -> 2018-03-23T21:43:40.260 | O4: ='1-Input Data'!$D$7 -> 0 | R4: =O4 -> 0
O5: ='1-Input Data'!$D$10 -> 0
O6: =SrDrName -> 0 | P6: =Calcs!O6 -> 0
O7: =AssocName -> 0
A9: =Potential_Associate_Name&"'s Estimated Current Daily Production" -> 's Estimated Current Daily Production | J9: ='1-Input Data'!$D$30 -> 0
A10: ="Estimated Normal Daily Hours Worked by "&AssocName -> Estimated Normal Daily Hours Worked by 0 | J10: =ENDHWNA1 -> 0 | Q10: AssStdDaysMo | R10: =AssStdDaysMo -> 0 | U10: AssStdDaysMo | V10: =AssStdDaysMo -> 0
A11: ="Number of operatories used by "&AssocName -> Number of operatories used by 0 | I11: x | J11: 1
A12: ="Operatory hours per Normal Day for "&AssocName -> Operatory hours per Normal Day for 0 | J12: =J10*J11 -> 0
A14: "Standard" treatment hours per day for this practice | J14: =Std__treatment_hours_per_day_for_this_practice -> 0
A15: ="Number of operatories used by "&AssocName -> Number of operatories used by 0 | I15: x | J15: 1
A16: ="Operatory hours per Standard Day for "&AssocName -> Operatory hours per Standard Day for 0 | J16: =J14*J15 -> 0
A17: =AssocName&"'s Days worked Per Week" -> 0's Days worked Per Week | J17: =Dr._Assoc2_s_Days_worked_Per_Week -> 0
A18: =AssocName&"'s Production per Standard Day" -> 0's Production per Standard Day | J18: =J9/J10*J14 -> 
A19: Collections percent: | J19: =CollperCent -> 0
A20: Associate commission percentage: | J20: ='1-Input Data'!$D$40 -> 0
A21: Associate paid on (1=Collections, 2=Production) | J21: =Associate_paid_on -> 0
A23: Historical Production | H23: =AssocName -> 0
R24: Assoc. Addl Expense | V24: =AssocAddlCosts -> 0
A25: Month | D25: Days | E25: Hours | F25: General | G25: Speclty | H25: Hygiene | I25: Total | J25: Average | K25: Average | L25: Collections * | N25: New
D26: Worked | E26: Worked | F26: Dental | G26: Prod | H26: Prod | I26: Prod | J26: Prod | K26: Prod | L26: @ | N26: Patients
F27: Prod | H27: by Dr | J27: per Day | K27: per Hr | L27: =CollperCent -> 0 | M27: Ratio | Q27: Net Contri. On an Assoc New Pt. | U27: =NetContribAssocNewPt -> 0
A28: May | B28: 87 | C28: (Avg) | D28: =I48 -> 12.5 | E28: =D28*StdTreatHours -> 0 | F28: =I51 -> 12844.41667 | G28: 0 | H28: 0 | I28: =SUM(F28:H28) -> 12844.41667 | J28: =I28/D28 -> 1027.553333 | K28: =I28/E28 ->  | L28: N/A | Q28: Number of new pat. - B/E | U28: =NewPtBE -> 0
A29: Jun | D29: 15 | E29: 0 | F29: 15856 | G29: 0 | H29: 0 | I29: 15856 | J29: 1057.066667 | L29: =I28*CollperCent -> 0 | M29: =L29/I28 -> 0 | N29: 30
A30: Jul | D30: 12 | E30: 0 | F30: 11258 | G30: 0 | H30: 0 | I30: 11258 | J30: 938.1666667 | L30: 0 | M30: 0 | N30: 16
A31: Aug | D31: 12 | E31: 0 | F31: 13602 | G31: 0 | H31: 0 | I31: 13602 | J31: 1133.5 | L31: 0 | M31: 0 | N31: 21
A32: Sep | D32: 14 | E32: 0 | F32: 10852 | G32: 0 | H32: 0 | I32: 10852 | J32: 775.1428571 | L32: 0 | M32: 0 | N32: 19
A33: Oct | D33: 14 | E33: 0 | F33: 18960 | G33: 0 | H33: 0 | I33: 18960 | J33: 1354.285714 | L33: 0 | M33: 0 | N33: 19
A34: Nov | D34: 11 | E34: 0 | F34: 9024 | G34: 0 | H34: 0 | I34: 9024 | J34: 820.3636364 | L34: 0 | M34: 0 | N34: 9
A35: Dec | D35: 11 | E35: 0 | F35: 13551 | G35: 0 | H35: 0 | I35: 13551 | J35: 1231.909091 | L35: 0 | M35: 0 | N35: 14
A36: Jan | B36: 88 | D36: 14 | E36: 0 | F36: 12210 | G36: 0 | H36: 0 | I36: 12210 | J36: 872.1428571 | L36: 0 | M36: 0 | N36: 16
A37: Feb | D37: 9 | E37: 0 | F37: 9388 | G37: 0 | H37: 0 | I37: 9388 | J37: 1043.111111 | L37: 0 | M37: 0 | N37: 19
A38: Mar | D38: 16 | E38: 0 | F38: 14972 | G38: 0 | H38: 0 | I38: 14972 | J38: 935.75 | L38: 0 | M38: 0 | N38: 24
A39: Apr | D39: 10 | E39: 0 | F39: 12086 | G39: 0 | H39: 0 | I39: 12086 | J39: 1208.6 | L39: 0 | M39: 0 | N39: 17
A40: May | D40: 12 | E40: 0 | F40: 12374 | G40: 0 | H40: 0 | I40: 12374 | J40: 1031.166667 | L40: 0 | M40: 0 | N40: 23
D41: ________ | E41: ________ | F41: ________ | G41: ________ | H41: ________ | I41: ________ | J41: ________ | K41: ________ | L41: ________ | M41: ________ | N41: ________ | Q41: =SrDrVarCosts -> 0
A42: 12-mo. total | D42: =SUM(D29:D41) -> 150 | E42: 0 | F42: 154133 | G42: 0 | H42: 0 | I42: 154133 | J42: N/A | K42: N/A | L42: =SUM(L29:L41) -> 0 | M42: =L42/SUM(I28:I39) -> 0 | N42: =SUM(N29:N41) -> 227
D43: ________ | E43: ________ | F43: ________ | G43: ________ | H43: ________ | I43: ________ | J43: ________ | K43: ________ | L43: ________ | M43: ________ | N43: ________
D44: ________ | E44: ________ | F44: ________ | G44: ________ | H44: ________ | I44: ________ | J44: ________ | K44: ________ | L44: ________ | M44: ________ | N44: ________
B45: * Individual collection figures not provided. Collections calculated with 30-day lag time.
A47: Historical Averages: | G47: =AssocName -> 0
D48: # Days Worked per Month: | I48: =D42/COUNT(D29:D40) -> 12.5 | Y48: =X48 -> 0 | Z48: 0 | AA48: 0 | AB48: 0 | AC48: 0 | AD48: 0
D49: # Hours Worked per Month: | I49: =E42/COUNT(E29:E40) -> 0
D50: # Hours Worked per Day: | I50: =I49/I48 -> 0
D51: Prod. per Month: | I51: =I42/COUNT(F29:F40) -> 12844.41667 | Y51: =X51 -> 0 | Z51: 0 | AA51: 0 | AB51: 0 | AC51: 0 | AD51: 0
D52: Prod. per Day: | I52: =I42/D42 -> 1027.553333
D53: Prod. per Hour: | I53: =I42/E42 -> 
D54: New Patients per Month: | I54: =N42/COUNT(N29:N40) -> 18.91666667 | S54: =I54 -> 18.91666667 | T54: =S54 -> 18.91666667 | U54: 18.91666667 | V54: 18.91666667 | W54: 18.91666667 | X54: 18.91666667 | Y54: 18.91666667 | Z54: 18.91666667 | AA54: 18.91666667 | AB54: 18.91666667 | AC54: 18.91666667 | AD54: 18.91666667
A56: =AssocName -> 0 | D56: is paid a percent of (1=coll, 2=prod) | I56: 1
A57: Value of a new patient: | F57: =Value_of_a_new_patient -> 0
A58: ="Production required to sustain "&AssocName -> Production required to sustain 0 | H58: =J9*J201 -> 0
A59: # of new patients per mo. reqd. to sustain associate | H59: =H58/F57 -> 
A62: ="Net profit per standard day of production by "&AssocName -> Net profit per standard day of production by 0
K64: Profit to | M64: Profit to
K65: =Doctor1 -> 0 | M65: =AssocName -> 0
B67: Current Production per Standard Day | H67: =J9 -> 0
G68: x | H68: =CollperCent -> 0
B70: Current Collections per Standard Day | H70: =$H$67*$H$68 -> 0 | K70: =$H$70 -> 0
B73: Associate's fee | F73: =AssCommPct -> 0
C74: Paid on: | G74: =AssocPaidOn -> 0 | H74: (1=Collections; 2 = Production)
C75: =AssocName -> 0 | G75: =IF(G74=1,H70*F73,H67*F73) -> 0 | K75: =-$M$75 -> 0 | M75: =G75 -> 0
C76: Payroll taxes | F76: ='1-Input Data'!D42 -> 0 | G76: =(G75+AssLabFee+AssFrntDsk+AssClinAsst+AssExp1+AssExp2+AssExp3+AssExp4+AssExp5+AssExp6+AssExp7)*PayrollTaxAssoc ->  | K76: =-G76 -> 
B78: Variable expenses
C80: Universal variable exp. | H80: =CalUnivVarPerCent -> 0
D81: ="% to "&Doctor1 -> % to 0 | G81: =PercentUnivPdByDr1 -> 0 | I81: =H80*G81 -> 0 | K81: =-I81*$H$67 -> 0
D82: ="% to "&AssocName -> % to 0 | G82: =1-G81 -> 1 | I82: =H80*G82 -> 0 | M82: =-I82*$H$67 -> 0
C84: =AssocName&"'s Lab fees" -> 0's Lab fees | H84: =LabFees/AnnProd___All_Doctors -> 
D85: ="% to "&Doctor1 -> % to 0 | G85: =PercentLabPdByDr1 -> 0 | I85: =H84*G85 ->  | K85: =-I85*$H$67 -> 
D86: ="% to "&AssocName -> % to 0 | G86: =1-G85 -> 1 | I86: =H84*G86 ->  | M86: =-I86*$H$67 -> 
A93: =Formal_Practice_Name -> 0
A94: ="Practice: "&Doctor1 -> Practice: 0
A95: New Associate Analysis - MasterPlan Alliance Recomendations | M95: =NOW() -> 2018-03-23T21:43:40.260
K97: Profit to | M97: Profit to
K98: =Doctor1 -> 0 | M98: =AssocName -> 0
B100: Add'l. costs due to Associate: | H100: Monthly | I100: Daily
C102: Addl. Front Desk Help
C103: ="Salary = " &'1-Input Data'!D55&" Hrs. * $" &'1-Input Data'!D57&" /hr. * " &'1-Input Data'!D59&" days/wk. " -> Salary = Hrs. * $ /hr. * days/wk. | H103: ='1-Input Data'!D55*'1-Input Data'!D57*'1-Input Data'!D59*4.34 -> 0 | I103: =H103/AssocStandardDaysperMo -> 
C104: Payroll taxes & benefits | G104: 0.1 | H104: =H111*G104 -> 0 | I104: =I103*G104 -> 
C105: Total | H105: =SUM(H103:H104) -> 0 | I105: =SUM(I103:I104) -> 
D107: ="% to "&Doctor1 -> % to 0 | G107: =PercentToSrDr -> 0 | H107: =H105*G107 -> 0 | I107: =I105*G107 ->  | K107: =-I107 -> 
D108: ="% to "&AssocName -> % to 0 | G108: =1-G107 -> 1 | H108: =H105*G108 -> 0 | I108: =I105*G108 ->  | M108: =-I108 -> 
C110: Associate's Clinical Asst.: | H110: Monthly | I110: Daily | Q110: =DrPftMo -> 
C111: ="Salary = " &'1-Input Data'!D65&" Hrs. * $" &'1-Input Data'!D67&" /hr. * " &'1-Input Data'!D69&" days/wk. * " &'1-Input Data'!D71& " assistant(s)" -> Salary = Hrs. * $ /hr. * days/wk. * assistant(s) | H111: ='1-Input Data'!D65*'1-Input Data'!D67*AssociateClinicalAsst.*Number_of_Asst_needed.*4.34 -> 0 | I111: =H111/AssocStandardDaysperMo ->  | L111: Team Cost | N111: Team Cost | Q111: 12
C112: Payroll taxes & benefits | G112: 0.1 | H112: =H111*G112 -> 0 | I112: =I111*G112 ->  | L112: =DrFrntDsk+DrClinAsst ->  | N112: =AssFrntDsk+AssClinAsst -> 
C113: Total | H113: =SUM(H111:H112) -> 0 | I113: =SUM(I111:I112) -> 
D115: ="% to "&Doctor1 -> % to 0 | G115: ='1-Input Data'!$D$73 -> 0 | H115: =H113*G115 -> 0 | I115: =I113*G115 ->  | K115: =-I115 -> 
D116: ="% to "&AssocName -> % to 0 | G116: =1-G115 -> 1 | H116: =H113*G116 -> 0 | I116: =I113*G116 ->  | M116: =-I116 -> 
C118: Expense 1: | E118: ='1-Input Data'!$C$78 -> Expense 1: Malpractice Insurance | H118: =MalPracInsAnn/12 -> 0 | I118: =H118/AssocStandardDaysperMo -> 
D120: ="% to "&Doctor1 -> % to 0 | G120: ='1-Input Data'!D80 -> 0 | H120: =H118*G120 -> 0 | I120: =I118*G120 ->  | K120: =-I120 -> 
D121: ="% to "&AssocName -> % to 0 | G121: =1-G120 -> 1 | H121: =H118*G121 -> 0 | I121: =I118*G121 ->  | M121: =-I121 -> 
C123: Expense 2: | E123: ='1-Input Data'!$C$82 -> Expense 2: Additional Operatory(ies) | H123: =AddlOp/12 -> 0 | I123: =H123/AssocStandardDaysperMo -> 
D125: ="% to "&Doctor1 -> % to 0 | G125: ='1-Input Data'!D84 -> 0 | H125: =H123*G125 -> 0 | I125: =I123*G125 ->  | K125: =-I125 -> 
D126: ="% to "&AssocName -> % to 0 | G126: =1-G125 -> 1 | H126: =H123*G126 -> 0 | I126: =I123*G126 ->  | M126: =-I126 -> 
C128: Expense 3: | E128: ='1-Input Data'!$C$86 -> Expense 3: Marketing | H128: ='1-Input Data'!D86/12 -> 0 | I128: =H128/AssocStandardDaysperMo -> 
D130: ="% to "&Doctor1 -> % to 0 | G130: ='1-Input Data'!D88 -> 0 | H130: =H128*G130 -> 0 | I130: =I128*G130 ->  | K130: =-I130 -> 
D131: ="% to "&AssocName -> % to 0 | G131: =1-G130 -> 1 | H131: =H128*G131 -> 0 | I131: =I128*G131 ->  | M131: =-I131 -> 
C133: Expense 4: | E133: ='1-Input Data'!$C$90 -> Expense 4: CE Expense | H133: =C.E._Annually/12 -> 0 | I133: =H133/AssocStandardDaysperMo -> 
D135: ="% to "&Doctor1 -> % to 0 | G135: =PercentToSrDoctor_CE -> 0 | H135: =H133*G135 -> 0 | I135: =I133*G135 ->  | K135: =-I135 -> 
D136: ="% to "&AssocName -> % to 0 | G136: =1-G135 -> 1 | H136: =H133*G136 -> 0 | I136: =I133*G136 ->  | M136: =-I136 -> 
C138: Expense 5: | E138: ='1-Input Data'!$C$94 -> Expense 5: Equipment | H138: ='1-Input Data'!$D$94/12 -> 0 | I138: =H138/AssocStandardDaysperMo -> 
D140: ="% to "&Doctor1 -> % to 0 | G140: ='1-Input Data'!$D$96 -> 0 | H140: =H138*G140 -> 0 | I140: =I138*G140 ->  | K140: =-I140 -> 
D141: ="% to "&AssocName -> % to 0 | G141: =1-G140 -> 1 | H141: =H138*G141 -> 0 | I141: =I138*G141 ->  | M141: =-I141 -> 
C143: Expense 6: | E143: ='1-Input Data'!C98 -> Expense 6: Optional Expense A | H143: ='1-Input Data'!$D$98/12 -> 0 | I143: =H143/AssocStandardDaysperMo -> 
D145: ="% to "&Doctor1 -> % to 0 | G145: ='1-Input Data'!$D$100 -> 0 | H145: =H143*G145 -> 0 | I145: =I143*G145 ->  | K145: =-I145 -> 
D146: ="% to "&AssocName -> % to 0 | G146: =1-G145 -> 1 | H146: =H143*G146 -> 0 | I146: =I143*G146 ->  | M146: =-I146 -> 
C148: Expense 7: | E148: ='1-Input Data'!C102 -> Expense 7: Optional Expense B | H148: ='1-Input Data'!$D$102/12 -> 0 | I148: =H148/AssocStandardDaysperMo -> 
D150: ="% to "&Doctor1 -> % to 0 | G150: ='1-Input Data'!$D$104 -> 0 | H150: =H148*G150 -> 0 | I150: =I148*G150 ->  | K150: =-I150 ->  | L150: =SUM(K120:K150) -> 
D151: ="% to "&AssocName -> % to 0 | G151: =1-G150 -> 1 | H151: =H148*G151 -> 0 | I151: =I148*G151 ->  | M151: =-I151 ->  | N151: =SUM(M121:M151) -> 
B153: HIDE ROWS | J153: SubTotal | K153: =DrExp7+DrExp6+DrExp5+DrExp4+DrExp3+DrExp2+DrExp1+DrClinAsst+DrFrntDsk+DrLabFeesAssoc+DrUniVar ->  | M153: =AssExp7+AssExp6+AssExp5+AssExp4+AssExp3+AssExp2+AssExp1+AssClinAsst+AssFrntDsk+AssLabFee+AssUniVar -> 
B154: HIDE ROWS | J154: AssocCompTax | K154: =K75+PayRlTaxes -> 
B155: HIDE ROWS | J155: ProdAftColl | K155: =K70 -> 0 | L155: GrossComp | M155: =M75 -> 0 | Q155: =IF(TrgtAssocProfit=0,0,(TrgtAssocProfit-HygNetProfit)/TrgtAssocProfit) -> 
C157: Net Profit per Standard Day - before Overhead Allocation | K157: =SUM(K153:K155) ->  | M157: =SUM(M153:M155) -> 
C159: Number of Standard Days per Month | J159: x | K159: =AssocStandardDaysperMo -> 0 | L159: x | M159: =AssocStandardDaysperMo -> 0
Q160: =DrPftMo -> 
C161: Net Profit per Month - before Overhead Allocation | K161: =K157*K159 ->  | M161: =M157*M159 ->  | Q161: 12
B165: Overhead Allocated to Cost of Associate: | H165: Monthly | I165: Daily
I166: =AssocStandardDaysperMo -> 0
C167: Other | H167: 0 | I167: =H167/AssocStandardDaysperMo -> 
C168: XX
C169: Total | H169: =SUM(H167:H168) -> 0 | I169: =SUM(I167:I168) -> 
C171: % allocated to Associate: | G171: =Assoc1AllocTotal -> 0.2191011236 | H171: =H169*G171 -> 0 | I171: =I169*G171 -> 
D173: ="Paid by "&Doctor1 -> Paid by 0 | G173: 1 | H173: =H171*G173 -> 0 | I173: =I171*G173 ->  | K173: =-I173 -> 
D174: ="Paid by "&AssocName -> Paid by 0 | G174: =1-G173 -> 0 | H174: =H171*G174 -> 0 | I174: =I171*G174 ->  | M174: =-I174 -> 
C176: Net Profit per Standard Day - after Overhead Allocation | K176: =K157+K173 ->  | M176: =M157+M174 -> 
C178: Number of Standard Days per Month | J178: x | K178: =AssocStandardDaysperMo -> 0 | L178: x | M178: =AssocStandardDaysperMo -> 0
C180: Net Profit per Month - after Overhead Allocation | K180: =K176*K178 ->  | M180: =M176*M178 -> 
K181: ________ | M181: ________
C184: Contribution after direct expenses per Day | K184: =$K$157 ->  | M184: =$M$157 -> 
C185: Contribution after direct expenses per Month | K185: =$K$161 ->  | M185: =$M$161 -> 
C186: Contribution after direct expenses per Year | K186: =K185*12 ->  | M186: =M185*12 -> 
C187: Overhead Contribution
I192: =Potential_Associate_Name&"'s minimum required gross annual income" -> 's minimum required gross annual income | M192: ='1-Input Data'!D49 -> 0
A193: Projected Treatment Days per Month | L193: =IF(M193>0,"Surplus","Shortfall") ->  | M193: =ContribAssocYear-'1-Input Data'!D49 -> 
D196: Op Hours | F196: Wks per | H196: Treatment | J196: Total | L196: Treat. Space Usage Ratios
D197: per Week | F197: Month | H197: Hours per | J197: Standard | L197: All | M197: Doctors | N197: Assoc
H198: Standard Day | J198: Days/Month | L198: Prod | M198: Only | N198: Only
A199: =Doctor1 -> 0 | D199: 39 | F199: 4.34 | H199: =+$J$14 -> 0 | J199: 0 | L199: =D199/D205 -> 0.2191011236 | M199: =D199/D206 -> 0.5 | N199: N/A
A200: Dr. Second | D200: 0 | F200: 4.34 | H200: =+$J$14*2 -> 0 | J200: =D200*F200/H200 ->  | L200: =D200/D205 -> 0 | M200: =D200/D205 -> 0 | N200: N/A
A201: New Associate | D201: 39 | F201: 4.34 | H201: =+$J$14 -> 0 | J201: =AssocDaysWorkedPerWk*4.34 -> 0 | L201: =D201/D205 -> 0.2191011236 | M201: =D201/D206 -> 0.5 | N201: =D201/D207 -> 1
A202: Dr. Assoc2 | D202: 0 | F202: 4.34 | H202: =+$J$14 -> 0 | J202: =D202*F202/H202 ->  | L202: =D202/D205 -> 0 | M202: =D202/D206 -> 0 | N202: =D202/D207 -> 0
A203: Hygiene | D203: =12.5*8 -> 100 | F203: 4.34 | H203: =+$J$14 -> 0 | J203: 0 | L203: =D203/D205 -> 0.5617977528 | M203: N/A | N203: N/A
D204: ________ | J204: ________ | L204: ________ | M204: ________ | N204: ________
A205: Total | D205: =SUM(D199:D204) -> 178 | J205: =SUM(J199:J204) ->  | L205: =SUM(L199:L204) -> 1 | M205: =SUM(M199:M204) -> 1 | N205: =SUM(N199:N204) -> 1
A206: Doctors Only | D206: =SUM(D199:D202) -> 78
A207: Assoc Only | D207: =SUM(D201:D202) -> 39
N210: ='3-Assoc. Pay Chart'!$I$118*CollperCent -> 0 | Q210: =Q160*Q161 ->  | R210: Dr. Profit Year
N211: =IF($G$74=1,'3-Assoc. Pay Chart'!$I$118*CollperCent*'3-Assoc. Pay Chart'!$C$139,'3-Assoc. Pay Chart'!$I$118*'3-Assoc. Pay Chart'!$C$139) -> 675
N213: =SrDrVarCosts -> 0
N214: =AddlCostAssoc -> 
N215: =DailyOverheadCosts -> 
F217: Gross Practice Production | J217: =TotPracProd -> 0 | L217: . | X217: Associate's Net Take-Home Before Tax
F218: Number of months | J218: 12
Y219: Lab Fees | Z219: =Z222*AssocLabExp*AssLabFees -> 
F220: Variable Expenses | J220: Annually | Y220: Universal Costs | Z220: =Z222*AssocUnivExp*VarCostsPerctUniversal -> 0 | AA220: 0 | AB220: 0 | AC220: 0 | AD220: 0 | AE220: 0 | AF220: 0 | AG220: 0 | AH220: 0 | AI220: 0 | AJ220: 0 | AK220: 0 | AL220: 0 | AM220: 0 | AN220: 0 | AO220: 0 | AP220: 0 | AQ220: 0 | AR220: 0 | AS220: 0 | AT220: 0
F221: Universal Variable Expenses | Y221: Production Rate
G222: Patient Billing Expenses | J222: 0 | K222: =J222/NumberOfMonths -> 0 | L222: =J222/TotPracProd ->  | Y222: Per Day | Z222: 1000 | AA222: =Z222+100 -> 1100 | AB222: 1200 | AC222: 1300 | AD222: 1400 | AE222: 1500 | AF222: 1600 | AG222: 1700 | AH222: 1800 | AI222: 1900 | AJ222: 2000 | AK222: 2100 | AL222: 2200 | AM222: 2300 | AN222: 2400 | AO222: 2500 | AP222: 2600 | AQ222: 2700 | AR222: 2800 | AS222: 2900 | AT222: 3000
G223: Collection Expenses | X223: Per Cent | Y223: 0.25 | Z223: =(IF(AssocPaidOn=1,Z$222*CollperCent*$Y223,Z$222*$Y223)-Z$219-Z$220+AssFrntDsk+AssClinAsst+AssExp1+AssExp2+AssExp3+AssExp4+AssExp5+AssExp6+AssExp7) ->  | AJ223: =(IF(AssocPaidOn=1,AJ$222*CollperCent*$Y223,AJ$222*$Y223)-AJ$219-AJ$220+AssFrntDsk+AssClinAsst+AssExp1+AssExp2+AssExp3+AssExp4+AssExp5+AssExp6+AssExp7) -> 
H224: Receivables Factoring | J224: 0 | K224: =J224/NumberOfMonths -> 0 | L224: =J224/TotPracProd ->  | X224: =IF(AssocPaidOn=1,"of Coll.","of Prod.") -> of Prod. | Y224: =Y223+0.01 -> 0.26
H225: Receivables Mgt Fees - Dent-A-Med | J225: 0 | K225: =J225/NumberOfMonths -> 0 | L225: =J225/TotPracProd ->  | X225: Pd to | Y225: =Y224+0.01 -> 0.27
H226: Small Claims Court & Legal/Coll. Fees | J226: 0 | K226: =J226/NumberOfMonths -> 0 | L226: =J226/TotPracProd ->  | X226: Assoc | Y226: 0.28
H227: Total | J227: =SUM(J224:J226) -> 0 | K227: =SUM(K224:K226) -> 0 | L227: =SUM(L224:L226) ->  | Y227: 0.29
Y228: 0.3
G229: Dental Supplies | J229: 1e-06 | K229: =J229/NumberOfMonths -> 8.333333333e-08 | L229: =J229/TotPracProd ->  | Y229: 0.31
G230: Merchant Discount Fees / Visa & MC | J230: 0 | K230: =J230/NumberOfMonths -> 0 | L230: =J230/TotPracProd ->  | Y230: 0.32
G231: Miscellaneous | Y231: 0.33
H232: Freight & Shipping | J232: 0 | K232: =J232/NumberOfMonths -> 0 | L232: =J232/TotPracProd ->  | Y232: 0.34
H233: Insurance Refunds | J233: 0 | K233: =J233/NumberOfMonths -> 0 | L233: =J233/TotPracProd ->  | Y233: 0.35 | Z233: =(IF(AssocPaidOn=1,Z$222*CollperCent*$Y233,Z$222*$Y233)-Z$219-Z$220+AssFrntDsk+AssClinAsst+AssExp1+AssExp2+AssExp3+AssExp4+AssExp5+AssExp6+AssExp7) ->  | AJ233: =(IF(AssocPaidOn=1,AJ$222*CollperCent*$Y233,AJ$222*$Y233)-AJ$219-AJ$220+AssFrntDsk+AssClinAsst+AssExp1+AssExp2+AssExp3+AssExp4+AssExp5+AssExp6+AssExp7) -> 
H234: New | J234: 0 | K234: =J234/NumberOfMonths -> 0 | L234: =J234/TotPracProd ->  | Y234: 0.36
H235: Total | J235: =SUM(J231:J234) -> 0 | K235: =SUM(K232:K234) -> 0 | L235: =SUM(L232:L234) ->  | Y235: 0.37
Y236: 0.38
G237: Office Supplies | Y237: 0.39
H238: Miscellaneous | J238: 0 | K238: =J238/NumberOfMonths -> 0 | L238: =J238/TotPracProd ->  | Y238: 0.4
H239: Other | J239: 0 | K239: =J239/NumberOfMonths -> 0 | L239: =J239/TotPracProd ->  | Y239: 0.41
H240: Total | J240: =SUM(J238:J239) -> 0 | K240: =SUM(K238:K239) -> 0 | L240: =SUM(L238:L239) ->  | Y240: 0.42
Y241: 0.43
G242: Parking--Patient | J242: 0 | K242: =J242/NumberOfMonths -> 0 | L242: =J242/TotPracProd ->  | Y242: 0.44
G243: Petty Cash | J243: 0 | K243: =J243/NumberOfMonths -> 0 | L243: =J243/TotPracProd ->  | Y243: 0.45 | Z243: =(IF(AssocPaidOn=1,Z$222*CollperCent*$Y243,Z$222*$Y243)-Z$219-Z$220+AssFrntDsk+AssClinAsst+AssExp1+AssExp2+AssExp3+AssExp4+AssExp5+AssExp6+AssExp7) ->  | AJ243: =(IF(AssocPaidOn=1,AJ$222*CollperCent*$Y243,AJ$222*$Y243)-AJ$219-AJ$220+AssFrntDsk+AssClinAsst+AssExp1+AssExp2+AssExp3+AssExp4+AssExp5+AssExp6+AssExp7) -> 
G244: Postage | J244: 0 | K244: =J244/NumberOfMonths -> 0 | L244: =J244/TotPracProd ->  | Y244: 0.46
G245: Telephone | J245: 16890 | K245: =J245/NumberOfMonths -> 1407.5 | L245: =J245/TotPracProd ->  | Y245: 0.47
G246: Subtotal: Universal | Y246: 0.48
H247: Variable Expenses | J247: =J222+J227+J229+J230+J235+J240+J242+J243+J244+J245 -> 16890 | K247: =K222+K227+K229+K230+K235+K240+K242+K243+K244+K245 -> 1407.5 | L247: =L222+L227+L229+L230+L235+L240+L242+L243+L244+L245 ->  | Y247: 0.49
Y248: 0.5
F249: Variable Expenses, Dental Only | Y249: 0.51
G250: Lab Fees | J250: =LabFees -> 0 | K250: =J250/NumberOfMonths -> 0 | L250: =IF(AnnProd___All_Doctors=0,0,J250/AnnProd___All_Doctors) -> 0 | Y250: 0.52
J251: ________ | K251: ________ | L251: ________ | Y251: 0.53
G252: Total Variable Expenses | J252: =J247+J250 -> 16890 | K252: =K247+K250 -> 1407.5 | L252: =L247+L250 ->  | Y252: 0.54
Y253: 0.55 | Z253: =(IF(AssocPaidOn=1,Z$222*CollperCent*$Y253,Z$222*$Y253)-Z$219-Z$220+AssFrntDsk+AssClinAsst+AssExp1+AssExp2+AssExp3+AssExp4+AssExp5+AssExp6+AssExp7) ->  | AJ253: =(IF(AssocPaidOn=1,AJ$222*CollperCent*$Y253,AJ$222*$Y253)-AJ$219-AJ$220+AssFrntDsk+AssClinAsst+AssExp1+AssExp2+AssExp3+AssExp4+AssExp5+AssExp6+AssExp7) -> 
Y254: 0.56
Y255: 0.57
Y256: 0.58
Y257: 0.59
Y258: 0.6
Y259: 0.61
Y260: 0.62
Y261: 0.63
Y262: 0.64
Y263: 0.65
X267: Sr. Doctor's Net Profit Before Overhead Cost
Y269: Lab Fees | Z269: =Z$272*SrDocLabExp*DrsLabFeePct -> 0 | AA269: 0 | AB269: 0 | AC269: 0 | AD269: 0 | AE269: 0 | AF269: 0 | AG269: 0 | AH269: 0 | AI269: 0 | AJ269: 0 | AK269: 0 | AL269: 0 | AM269: 0 | AN269: 0 | AO269: 0 | AP269: 0 | AQ269: 0 | AR269: 0 | AS269: 0 | AT269: 0
... 76 more rows

Sheet Module1 (hidden)
